bitfinex/quotes_BTCUSD_20220304
["timestamp","ask_amount","ask_price","bid_price","bid_amount"]
[1646407334584,0.05,40781.0,40775.0,0.061321]
[1646407334789,0.15574635,40776.0,40772.0,0.157238]
[1646407334984,0.15574635,40776.0,40772.0,0.03459]
[1646407335184,0.13686299,40783.0,40772.0,0.03459]
[1646407335382,0.02448,40782.0,40772.0,0.03459]
[1646407335582,0.06133315,40776.0,40772.0,0.03459]
[1646407336187,0.11133315,40776.0,40772.0,0.03459]
[1646407336587,0.26888732,40775.0,40772.0,0.03459]
[1646407337186,0.06133315,40776.0,40772.0,0.03459]
[1646407337638,0.27895788,40776.0,40772.0,0.03459]
[1646407337840,0.06133315,40776.0,40772.0,0.03459]
[1646407338344,0.22456458,40775.0,40772.0,0.00893801]
[1646407338743,0.19688911,40774.0,40772.0,0.00893801]
[1646407338946,0.42456458,40775.0,40772.0,0.00893801]
[1646407339142,0.27456458,40775.0,40772.0,0.00893801]
[1646407339340,0.02448,40774.0,40772.0,0.00893801]
[1646407339738,0.27456458,40775.0,40772.0,0.00893801]
[1646407339944,0.05,40775.0,40772.0,0.00893801]
[1646407340139,0.11133315,40776.0,40773.0,0.32656429]
[1646407340339,0.41133315,40776.0,40772.0,0.00893801]
[1646407340538,0.11133315,40776.0,40773.0,0.05]
[1646407340739,0.3,40775.0,40761.0,0.222682]
[1646407340940,0.06133847,40773.0,40761.0,0.122682]
[1646407341184,0.06133847,40773.0,40761.0,0.04021573]
[1646407341380,0.06133847,40773.0,40769.0,0.2573019]
[1646407341880,0.06133847,40773.0,40769.0,0.3073019]
[1646407342483,0.06133847,40773.0,40769.0,0.05]
[1646407342680,0.06133847,40773.0,40767.0,0.05]
[1646407343081,0.26189306,40773.0,40767.0,0.05]
[1646407343280,0.56189306,40773.0,40767.0,0.05]
[1646407343487,0.02448,40772.0,40767.0,0.05]
[1646407343687,0.02448,40772.0,40753.0,0.03738135]
[1646407343688,0.02448,40771.0,40753.0,0.03738135]
[1646407343884,0.02448,40767.0,40753.0,0.03738135]
[1646407344084,0.37448,40767.0,40753.0,0.03738135]
[1646407344282,0.37448,40767.0,40751.0,0.061359]
[1646407344487,0.02448,40765.0,40750.0,0.0001]
[1646407344834,0.1,40766.0,40743.0,0.34229958]
[1646407344835,0.06136245,40755.0,40743.0,0.34229958]
[1646407345139,0.06136245,40755.0,40744.0,0.061365]
[1646407345335,0.18409607,40766.0,40745.0,0.3]
[1646407345537,0.161365,40773.0,40745.0,0.3]
[1646407345538,0.4882,40776.0,40750.0,0.02448]
[1646407345734,0.4882,40776.0,40772.0,0.29613127]
[1646407345735,0.05,40774.0,40772.0,0.29613127]
[1646407345937,0.06133282,40780.0,40773.0,0.3]
[1646407346136,0.02,40783.0,40773.0,1.0386]
[1646407346333,0.02,40783.0,40774.0,0.9386]
[1646407346536,0.4849,40799.0,40787.0,0.16446411]
[1646407346740,0.471008,40812.0,40789.0,0.122591]
[1646407346741,0.5926,40807.0,40789.0,0.122591]
[1646407346946,0.4097,40812.0,40789.0,0.122591]
[1646407346947,0.05,40809.0,40803.0,0.05714314]
[1646407347136,0.06128483,40810.0,40808.0,0.24081864]
[1646407347335,0.01818182,40819.0,40808.0,0.24081864]
[1646407347533,0.15817289,40807.0,40804.0,0.05]
[1646407347736,0.01818182,40819.0,40804.0,0.05]
[1646407347935,0.01818182,40819.0,40799.0,0.1]
[1646407348132,0.18386145,40814.0,40799.0,0.15]
[1646407348433,0.18386145,40814.0,40799.0,0.272559]
[1646407348434,0.0999,40806.0,40799.0,0.272559]
[1646407348681,0.0999,40806.0,40804.0,0.28882527]
[1646407348882,0.0999,40806.0,40804.0,0.05]
[1646407349080,0.0999,40806.0,40800.0,0.1]
[1646407349281,0.06129156,40807.0,40800.0,0.05]
[1646407349484,0.06129156,40807.0,40791.0,0.122582]
[1646407349783,0.29824824,40809.0,40791.0,0.2]
[1646407349784,0.15,40803.0,40791.0,0.2]
[1646407349982,0.29775857,40809.0,40780.0,2.99554615]
[1646407349983,0.19676677,40792.0,40780.0,2.95424615]
[1646407350188,0.20639455,40785.0,40780.0,2.95424615]
[1646407350388,0.06132362,40783.0,40772.0,0.2]
[1646407350590,0.3,40784.0,40765.0,0.122664]
[1646407350784,0.05,40785.0,40765.0,0.122664]
[1646407350985,0.35,40787.0,40777.0,0.31163407]
[1646407351384,0.06133198,40782.0,40770.0,0.122644]
[1646407351584,0.3,40781.0,40767.0,0.2]
[1646407351784,0.3,40781.0,40763.0,0.06134]
[1646407351785,0.25501475,40772.0,40763.0,0.06134]
[1646407351987,0.3,40771.0,40762.0,0.001]
[1646407352461,0.35,40771.0,40762.0,0.001]
[1646407352859,0.05,40771.0,40762.0,0.001]
[1646407353263,0.2029152,40768.0,40762.0,0.001]
[1646407353460,0.3,40767.0,40762.0,0.001]
[1646407353659,0.2529152,40768.0,40762.0,0.001]
[1646407353863,0.3,40767.0,40762.0,0.001]
[1646407354064,0.12271391,40766.0,40762.0,0.001]
[1646407354260,0.05,40765.0,40746.0,0.2]
[1646407354464,0.06137118,40759.0,40740.0,0.2]
[1646407354662,0.05,40765.0,40738.0,0.001]
[1646407354663,0.3,40758.0,40738.0,0.001]
[1646407354863,0.05,40765.0,40749.0,0.2398319]
[1646407354864,0.21267513,40755.0,40749.0,0.2398319]
[1646407355062,0.12275403,40754.0,40749.0,0.2398319]
[1646407355260,0.42275403,40754.0,40749.0,0.2398319]
[1646407355465,0.42275403,40754.0,40738.0,0.001]
[1646407355466,0.15550389,40752.0,40738.0,0.001]
[1646407355668,0.3,40751.0,40738.0,0.001]
[1646407356108,0.12277974,40749.0,40738.0,0.001]
[1646407356408,0.3452,40748.0,40738.0,0.001]
[1646407356609,0.40658987,40748.0,40738.0,0.001]
[1646407356804,0.25801952,40747.0,40738.0,0.001]
[1646407357005,0.30699897,40748.0,40738.0,0.001]
[1646407357309,0.12277576,40745.0,40738.0,0.001]
[1646407357509,0.0452,40751.0,40738.0,0.001]
[1646407357709,0.05,40763.0,40738.0,0.001]
[1646407357710,0.24552588,40762.0,40738.0,0.001]
[1646407357907,0.05,40763.0,40754.0,0.26204059]
[1646407358110,0.0497,40763.0,40748.0,0.3]
[1646407358312,3.18011949,40772.0,40752.0,0.185724]
[1646407358313,0.28173129,40760.0,40752.0,0.185724]
[1646407358509,0.6879,40771.0,40753.0,0.3]
[1646407358510,0.4506,40771.0,40753.0,0.3]
[1646407358709,0.06134965,40767.0,40753.0,0.4]
[1646407358910,0.05,40773.0,40757.0,0.76308]
[1646407359111,0.15,40786.0,40759.0,0.76308]
[1646407359308,0.15,40786.0,40764.0,0.2]
[1646407359511,0.12265205,40783.0,40770.0,0.24389177]
[1646407359717,0.06132567,40781.0,40771.0,0.0452]
[1646407359942,0.05,40788.0,40772.0,0.7386]
[1646407360149,0.05,40788.0,40774.0,0.799914]
[1646407360346,0.05,40788.0,40775.0,1.1838]
[1646407360544,0.12260488,40799.0,40786.0,0.29934788]
[1646407360746,0.14708488,40799.0,40787.0,0.0452]
[1646407361345,0.12260488,40799.0,40787.0,0.0452]
[1646407361547,0.21500067,40791.0,40787.0,0.0452]
[1646407361747,0.53765181,40791.0,40787.0,0.0452]
[1646407361946,0.53765181,40791.0,40784.0,0.29629378]
[1646407362147,0.56213181,40791.0,40784.0,0.05]
[1646407362346,0.56213181,40791.0,40781.0,0.0452]
[1646407362549,0.085814,40789.0,40781.0,0.0452]
[1646407362749,0.02448,40787.0,40763.0,0.325]
[1646407362970,0.02448,40780.0,40755.0,0.6558]
[1646407363147,0.02448,40772.0,40755.0,0.6558]
[1646407363346,0.3,40780.0,40755.0,0.061346]
[1646407363347,0.02448,40778.0,40755.0,0.061346]
[1646407363588,0.02448,40778.0,40751.0,0.19956241]
[1646407363589,0.061354,40776.0,40752.0,0.576489]
[1646407363783,0.02448,40777.0,40764.0,0.24630544]
[1646407363784,0.34622407,40768.0,40764.0,0.24630544]
[1646407363983,0.26732463,40767.0,40764.0,0.24630544]
[1646407364184,0.31732463,40767.0,40764.0,0.24630544]
[1646407364585,0.34180463,40767.0,40752.0,0.576489]
[1646407364785,0.61732463,40767.0,40752.0,0.122689]
[1646407364992,0.61732463,40767.0,40750.0,0.2]
[1646407364993,0.06135152,40763.0,40750.0,0.2]
[1646407365187,0.12270797,40764.0,40751.0,0.06556043]
[1646407365188,0.27136754,40760.0,40751.0,0.06556043]
[1646407365388,0.27136754,40760.0,40745.0,0.19956241]
[1646407365591,0.05,40764.0,40762.0,0.24121673]
[1646407365887,0.35,40768.0,40747.0,0.261358]
[1646407366094,0.12270747,40764.0,40746.0,0.19956241]
[1646407366288,0.12270747,40764.0,40745.0,0.001]
[1646407366289,0.02448,40762.0,40745.0,0.001]
[1646407366489,0.06137259,40753.0,40745.0,0.001]
[1646407366890,0.06137259,40753.0,40746.0,0.27219309]
[1646407367088,0.3,40763.0,40746.0,0.27219309]
[1646407367348,0.05,40764.0,40746.0,1.01079309]
[1646407367845,0.06135695,40759.0,40750.0,0.2]
[1646407368044,0.06135695,40759.0,40753.0,0.31801766]
[1646407368247,0.05,40768.0,40754.0,0.3]
[1646407368448,0.6648196,40775.0,40764.0,0.19679185]
[1646407368651,0.6648196,40775.0,40755.0,0.7838]
[1646407368652,0.2109196,40775.0,40763.0,0.0452]
[1646407369046,0.2109196,40775.0,40763.0,0.32998358]
[1646407369246,0.06133924,40770.0,40765.0,0.31777517]
[1646407369646,0.06133924,40770.0,40765.0,0.0497]
[1646407369846,0.06133924,40770.0,40765.0,0.0949]
[1646407370050,0.06133924,40770.0,40765.0,0.0452]
[1646407370248,0.3111285,40770.0,40765.0,0.0452]
[1646407370649,0.06135385,40767.0,40765.0,0.0452]
[1646407370853,0.06135385,40767.0,40756.0,0.0452]
[1646407371101,0.1227077,40768.0,40767.0,0.0982277]
[1646407371502,0.1727077,40768.0,40767.0,0.0982277]
[1646407371702,0.3616665,40768.0,40767.0,0.0982277]
[1646407372101,0.1727077,40768.0,40767.0,0.0982277]
[1646407372302,0.05,40768.0,40767.0,0.0982277]
[1646407372700,0.07448,40769.0,40767.0,0.1482277]
[1646407373706,0.05,40769.0,40767.0,0.1482277]
[1646407373911,0.3155323,40769.0,40767.0,0.1482277]
[1646407374111,0.3155323,40769.0,40767.0,7.7e-06]
[1646407374112,0.07448,40769.0,40767.0,7.7e-06]
[1646407374708,0.07448,40769.0,40745.0,0.001]
[1646407374709,0.02448,40761.0,40745.0,0.001]
[1646407374954,0.32079688,40761.0,40745.0,0.001]
[1646407375148,0.32079688,40761.0,40752.0,0.2567304]
[1646407375149,0.02448,40761.0,40752.0,0.2567304]
[1646407375946,0.06135125,40764.0,40754.0,0.061351]
[1646407376147,0.24156677,40763.0,40760.0,0.27560089]
[1646407376452,0.06135125,40764.0,40752.0,0.05]
[1646407376453,0.08583125,40764.0,40752.0,0.05]
[1646407376646,0.08583125,40764.0,40749.0,0.322698]
[1646407376647,0.08583125,40764.0,40749.0,0.05]
[1646407377045,0.08583125,40764.0,40745.0,0.001]
[1646407377245,0.02448,40759.0,40750.0,0.23351063]
[1646407377447,0.02448,40755.0,40750.0,0.0001]
[1646407377847,0.06136883,40756.0,40750.0,0.0001]
[1646407378448,0.06136304,40760.0,40750.0,0.0001]
[1646407378691,0.29231643,40762.0,40750.0,0.0001]
[1646407378886,0.02448,40761.0,40750.0,0.0001]
[1646407379284,0.12448,40761.0,40750.0,0.0001]
[1646407379486,0.02448,40761.0,40750.0,0.0001]
[1646407379687,0.05,40759.0,40750.0,0.0001]
[1646407379888,0.02448,40762.0,40750.0,0.0001]
[1646407380090,0.05,40767.0,40758.0,0.23955935]
[1646407380288,0.4505,40774.0,40758.0,0.28955935]
[1646407380688,0.4645,40776.0,40758.0,0.28955935]
[1646407380888,0.02448,40770.0,40758.0,0.47481416]
[1646407381793,1.28634796,40782.0,40758.0,0.47481416]
[1646407381794,0.06133821,40777.0,40765.0,0.3560856]
[1646407381987,0.5119,40783.0,40765.0,0.3560856]
[1646407382187,0.5119,40783.0,40766.0,0.0452]
[1646407382441,0.05,40783.0,40766.0,0.1452]
[1646407382641,0.24775221,40772.0,40766.0,0.0452]
[1646407383040,0.21197005,40773.0,40766.0,0.0452]
[1646407383243,0.21197005,40773.0,40753.0,0.0452]
[1646407383244,0.02448,40771.0,40753.0,0.0452]
[1646407383443,0.02448,40767.0,40751.0,0.39956241]
[1646407383642,0.02448,40767.0,40750.0,2.0001]
[1646407383840,0.07448,40767.0,40750.0,2.0001]
[1646407384042,0.02448,40761.0,40759.0,0.27804171]
[1646407384242,0.05,40762.0,40759.0,0.27804171]
[1646407384645,0.06136325,40767.0,40760.0,0.05394224]
[1646407384849,0.4793,40775.0,40761.0,0.3]
[1646407385047,0.1728707,40780.0,40767.0,0.1686184]
[1646407385245,0.00371431,40773.0,40771.0,0.29181632]
[1646407385444,0.00371431,40773.0,40771.0,0.34181632]
[1646407385645,0.00371431,40773.0,40772.0,0.0452]
[1646407386309,0.00371431,40773.0,40772.0,0.24657608]
[1646407386508,0.00371431,40773.0,40772.0,0.25867966]
[1646407386711,0.25371431,40773.0,40772.0,0.0452]
[1646407386909,0.05,40783.0,40772.0,0.0452]
[1646407387117,0.12266067,40789.0,40772.0,0.0452]
[1646407387118,0.571,40798.0,40780.0,0.05803008]
[1646407387313,0.72430808,40808.0,40780.0,0.05803008]
[1646407387314,0.4097,40807.0,40783.0,0.15]
[1646407387514,0.4097,40807.0,40788.0,0.7386]
[1646407387713,0.4097,40807.0,40786.0,0.15]
[1646407387714,0.4097,40807.0,40790.0,0.76308]
[1646407387911,0.4097,40807.0,40804.0,0.25890495]
[1646407388111,0.05,40813.0,40804.0,0.25890495]
[1646407388311,0.07448,40813.0,40804.0,0.30890495]
[1646407388512,0.20513552,40805.0,40804.0,0.05]
[1646407388714,1.4,40804.0,40795.0,0.2]
[1646407388911,0.02448,40803.0,40794.0,0.0452]
[1646407389111,0.02448,40803.0,40785.0,0.4452]
[1646407389311,0.02448,40803.0,40785.0,0.1452]
[1646407389512,0.21701777,40794.0,40791.0,0.31190395]
[1646407389717,1.4,40804.0,40785.0,0.0452]
[1646407389946,0.06131506,40798.0,40785.0,0.0452]
[1646407390746,0.19864268,40792.0,40788.0,0.23451018]
[1646407390946,0.02448,40796.0,40788.0,0.23451018]
[1646407391147,0.28752291,40794.0,40788.0,0.23451018]
[1646407391350,0.1,40803.0,40788.0,0.23451018]
[1646407391546,0.05,40793.0,40788.0,0.23451018]
[1646407391746,0.02448,40793.0,40788.0,0.23451018]
[1646407391946,0.19259557,40792.0,40788.0,0.23451018]
[1646407392147,0.02448,40791.0,40787.0,0.003]
[1646407392353,0.25194092,40791.0,40787.0,0.003]
[1646407392548,0.30194092,40791.0,40787.0,0.003]
[1646407392951,0.02448,40789.0,40765.0,0.32222341]
[1646407393147,0.57285544,40791.0,40770.0,0.26370361]
[1646407393148,0.02448,40784.0,40770.0,0.26370361]
[1646407393346,0.32448,40784.0,40770.0,0.26370361]
[1646407393800,0.05,40785.0,40770.0,0.32503661]
[1646407393999,0.0452,40791.0,40778.0,0.176322]
[1646407394202,0.25,40792.0,40784.0,0.29231768]
[1646407394398,0.5823,40802.0,40792.0,0.28681809]
[1646407394399,0.84245914,40802.0,40792.0,0.28681809]
[1646407394601,0.4702,40807.0,40777.0,0.1952]
[1646407394602,0.05,40803.0,40777.0,0.1952]
[1646407394804,0.02448,40802.0,40785.0,0.061311]
[1646407395199,0.05,40803.0,40786.0,0.07002688]
[1646407395200,0.02448,40800.0,40786.0,0.07002688]
[1646407395401,0.02448,40800.0,40783.0,0.46943022]
[1646407395600,0.05,40803.0,40799.0,0.23952295]
[1646407395806,1.73937557,40818.0,40799.0,0.23952295]
[1646407395807,0.00428283,40818.0,40800.0,0.3]
[1646407396013,0.4846,40821.0,40801.0,0.0452]
[1646407396203,0.4846,40821.0,40808.0,0.18132977]
[1646407396403,0.4846,40821.0,40802.0,0.2]
[1646407396600,0.4846,40821.0,40804.0,0.07020959]
[1646407396800,0.4526,40824.0,40812.0,0.30567942]
[1646407397002,0.05,40825.0,40812.0,0.35567942]
[1646407397441,0.19069106,40824.0,40812.0,0.35567942]
[1646407397647,0.11127729,40825.0,40812.0,0.35567942]
[1646407397844,0.05,40825.0,40813.0,0.3]
[1646407398043,0.4197,40829.0,40812.0,0.05]
[1646407398242,0.4197,40829.0,40807.0,0.5]
[1646407398243,0.2947193,40828.0,40807.0,0.311274]
[1646407398444,0.4197,40829.0,40807.0,0.05]
[1646407398641,0.2130087,40819.0,40806.0,0.003]
[1646407398841,0.06128209,40824.0,40808.0,0.07399455]
[1646407399041,0.05,40826.0,40818.0,0.32668025]
[1646407399241,0.15,40828.0,40818.0,0.32668025]
[1646407399442,0.05,40828.0,40818.0,0.05]
[1646407399641,0.15,40828.0,40818.0,0.05]
[1646407399843,0.15,40828.0,40811.0,0.21611488]
[1646407399844,0.02448,40820.0,40811.0,0.21611488]
[1646407400041,0.02448,40820.0,40815.0,0.003]
[1646407400440,0.02448,40820.0,40818.0,0.30210501]
[1646407400741,0.02448,40820.0,40818.0,0.05]
[1646407400942,0.02448,40818.0,40796.0,0.12254152]
[1646407401190,0.02448,40818.0,40800.0,0.2]
[1646407401191,0.02448,40816.0,40800.0,0.2]
[1646407401389,0.02448,40816.0,40795.0,0.42]
[1646407401588,0.02448,40816.0,40796.0,0.061294]
[1646407401789,0.02448,40816.0,40809.0,0.2423103]
[1646407401989,0.02448,40810.0,40809.0,0.2423103]
[1646407402389,0.02448,40810.0,40796.0,0.005]
[1646407402795,0.76308,40810.0,40796.0,0.005]
[1646407402992,0.02448,40808.0,40796.0,0.005]
[1646407403191,0.18577168,40804.0,40791.0,0.19628765]
[1646407403393,0.3,40806.0,40804.0,0.5352521]
[1646407403592,0.11129718,40814.0,40808.0,0.28912903]
[1646407403593,0.3,40813.0,40808.0,0.28912903]
[1646407403791,0.3,40813.0,40804.0,0.5352521]
[1646407403992,0.3,40813.0,40804.0,0.5852521]
[1646407403993,0.004,40810.0,40804.0,0.5852521]
[1646407404194,0.004,40810.0,40804.0,0.8462199]
[1646407404594,0.004,40810.0,40805.0,0.1]
[1646407405044,0.3,40820.0,40804.0,0.5852521]
[1646407405243,0.3,40820.0,40805.0,0.30200071]
[1646407405448,0.4839,40824.0,40805.0,0.30200071]
[1646407405645,0.4913,40826.0,40805.0,0.30200071]
[1646407405646,0.25,40810.0,40806.0,0.1412]
[1646407405845,0.3,40809.0,40806.0,0.05]
[1646407406047,0.25,40810.0,40806.0,0.05]
[1646407406345,0.21688334,40817.0,40804.0,0.78753741]
[1646407406543,0.3,40825.0,40804.0,0.5852521]
[1646407406745,0.3,40825.0,40817.0,0.23696985]
[1646407406943,0.3,40825.0,40807.0,0.172555]
[1646407407146,0.35,40825.0,40807.0,0.05]
[1646407407346,0.35,40825.0,40806.0,0.05]
[1646407407347,0.02448,40817.0,40806.0,0.05]
[1646407407545,0.19988326,40814.0,40804.0,0.5852521]
[1646407407746,0.22436326,40814.0,40804.0,0.5852521]
[1646407407950,0.02448,40812.0,40804.0,0.5852521]
[1646407408593,0.3,40813.0,40804.0,0.5852521]
[1646407408896,2.1184173,40818.0,40808.0,0.24597814]
[1646407408897,0.3,40817.0,40808.0,0.24597814]
[1646407409096,0.05,40827.0,40815.0,0.2389424]
[1646407409293,0.01,40829.0,40815.0,0.2389424]
[1646407409294,0.3,40826.0,40815.0,0.2389424]
[1646407409495,0.01,40829.0,40815.0,0.2889424]
[1646407409696,0.02448,40821.0,40815.0,0.2889424]
[1646407410093,0.02448,40821.0,40815.0,0.05]
[1646407410295,0.76308,40821.0,40815.0,0.05]
[1646407410497,0.02448,40819.0,40812.0,0.004]
[1646407410693,0.02448,40814.0,40812.0,0.004]
[1646407411295,0.02448,40814.0,40804.0,0.5352521]
[1646407411495,0.32448,40814.0,40804.0,0.5352521]
[1646407411896,0.02448,40808.0,40804.0,0.5352521]
[1646407412651,0.3,40814.0,40804.0,0.5352521]
[1646407412652,0.02448,40806.0,40804.0,0.5352521]
[1646407412848,0.02448,40805.0,40804.0,0.5352521]
[1646407413051,0.02448,40805.0,40804.0,0.3784621]
[1646407413450,0.02448,40805.0,40798.0,0.004]
[1646407413451,0.02448,40798.0,40790.0,0.2608991]
[1646407413651,0.32448,40798.0,40790.0,0.2608991]
[1646407414051,0.26876029,40792.0,40790.0,0.2608991]
[1646407414353,0.02448,40794.0,40790.0,0.2608991]
[1646407414550,0.02448,40802.0,40790.0,0.2608991]
[1646407415152,0.35,40803.0,40782.0,0.122609]
[1646407415153,0.7386,40799.0,40782.0,0.2]
[1646407415451,0.02448,40792.0,40780.0,0.122627]
[1646407415652,0.32448,40792.0,40780.0,0.122627]
[1646407415852,0.32448,40792.0,40776.0,0.001]
[1646407416099,0.02448,40791.0,40781.0,0.2843949]
[1646407416297,0.02448,40789.0,40781.0,0.2843949]
[1646407417297,0.02448,40788.0,40781.0,0.2843949]
[1646407417697,0.02448,40785.0,40781.0,0.2843949]
[1646407417897,0.23760766,40784.0,40781.0,0.2843949]
[1646407418097,0.003,40791.0,40781.0,0.2843949]
[1646407418301,0.303,40791.0,40781.0,0.2843949]
[1646407418498,0.303,40791.0,40781.0,0.3343949]
[1646407418697,0.49082519,40791.0,40781.0,0.3343949]
[1646407419099,0.26681416,40784.0,40781.0,0.3343949]
[1646407419300,0.02448,40790.0,40781.0,0.3343949]
[1646407419500,0.02448,40790.0,40781.0,0.05]
[1646407419841,0.02448,40790.0,40776.0,0.001]
[1646407420642,0.02448,40790.0,40783.0,0.30636617]
[1646407420846,0.02448,40790.0,40783.0,0.05]
[1646407421044,0.02448,40790.0,40776.0,0.001]
[1646407421045,0.02448,40789.0,40776.0,0.001]
[1646407421244,0.76308,40787.0,40776.0,0.001]
[1646407421446,0.02448,40785.0,40776.0,0.001]
[1646407421747,0.02448,40779.0,40764.0,0.002]
[1646407422051,0.02448,40773.0,40764.0,0.002]
[1646407422247,0.7386,40770.0,40764.0,0.002]
[1646407422543,0.37448,40769.0,40764.0,0.002]
[1646407422743,0.05,40769.0,40764.0,0.002]
[1646407422944,0.31715165,40778.0,40764.0,0.002]
[1646407422945,0.4,40778.0,40764.0,0.002]
[1646407423342,0.45,40778.0,40764.0,0.002]
[1646407423593,0.45,40778.0,40769.0,0.25266648]
[1646407423794,0.76308,40776.0,40769.0,0.30266648]
[1646407423992,0.25998392,40770.0,40769.0,0.30266648]
[1646407424192,0.02448,40774.0,40769.0,0.30266648]
[1646407425793,0.25,40778.0,40769.0,0.30266648]
[1646407426100,0.002,40775.0,40769.0,0.30266648]
[1646407426294,0.25,40778.0,40775.0,0.004]
[1646407426497,0.25491,40778.0,40775.0,0.004]
[1646407426694,0.22999,40778.0,40776.0,0.31222015]
[1646407427094,0.22999,40778.0,40776.0,0.36222015]
[1646407428148,0.22999,40778.0,40777.0,0.3]
[1646407428650,0.05023,40790.0,40783.0,0.05834189]
[1646407428844,0.05023,40790.0,40778.0,0.4]
[1646407428845,0.00023,40790.0,40778.0,0.4]
[1646407429044,0.00023,40790.0,40783.0,0.122621]
[1646407429447,0.00023,40790.0,40778.0,0.05]
[1646407429844,0.00023,40790.0,40776.0,0.36222015]
[1646407430045,0.00023,40790.0,40777.0,0.21387741]
[1646407430247,0.00023,40790.0,40779.0,0.19557927]
[1646407430545,0.00023,40790.0,40777.0,0.066325]
[1646407430946,0.00023,40790.0,40777.0,0.090805]
[1646407431204,0.00023,40790.0,40788.0,0.2573552]
[1646407431597,0.00023,40790.0,40788.0,0.3073552]
[1646407432598,0.00023,40790.0,40788.0,0.05]
[1646407432797,0.00023,40790.0,40784.0,0.061314]
[1646407433597,0.02448,40800.0,40794.0,0.00046]
[1646407433802,0.05,40800.0,40794.0,0.00046]
[1646407433999,0.15,40803.0,40794.0,0.00046]
[1646407434401,0.16880594,40801.0,40794.0,0.00046]
[1646407434703,0.25,40800.0,40794.0,0.00046]
[1646407434959,0.25,40800.0,40795.0,0.31046828]
[1646407435160,0.35,40800.0,40794.0,0.00046]
[1646407435362,0.25,40800.0,40794.0,0.00046]
[1646407436159,0.25,40800.0,40794.0,0.27374114]
[1646407436365,0.25,40800.0,40794.0,0.32374114]
[1646407436559,0.25,40800.0,40794.0,0.05046]
[1646407436769,0.25,40800.0,40797.0,0.25024696]
[1646407437159,0.25,40800.0,40797.0,0.30024696]
[1646407437561,0.25,40800.0,40797.0,0.29524696]
[1646407439398,0.25,40800.0,40797.0,0.045]
[1646407439601,0.25,40800.0,40794.0,0.00046]
[1646407439602,0.3,40800.0,40794.0,0.00046]
[1646407440098,0.3,40800.0,40796.0,0.003]
[1646407440303,0.3,40800.0,40778.0,0.2]
[1646407440304,0.15,40798.0,40778.0,0.2]
[1646407440503,0.15,40798.0,40776.0,0.009807]
[1646407440504,0.122665,40795.0,40776.0,0.009807]
[1646407440700,0.122665,40795.0,40775.0,0.30293517]
[1646407440701,0.02448,40792.0,40775.0,0.30293517]
[1646407440901,0.76308,40792.0,40775.0,0.30293517]
[1646407441099,0.02448,40790.0,40775.0,0.30293517]
[1646407441302,0.05,40790.0,40775.0,0.30293517]
[1646407441506,0.05,40790.0,40785.0,0.32416102]
[1646407441699,0.1,40798.0,40785.0,0.32416102]
[1646407441700,0.05,40792.0,40785.0,0.37416102]
[1646407441900,0.3,40797.0,40785.0,0.37416102]
[1646407442101,0.3,40800.0,40785.0,0.37416102]
[1646407442643,0.24323337,40795.0,40785.0,0.37416102]
[1646407442941,0.32448,40799.0,40785.0,0.37416102]
[1646407443144,0.2354335,40794.0,40785.0,0.37416102]
[1646407443344,0.05,40793.0,40785.0,0.37416102]
[1646407444146,0.3,40799.0,40785.0,0.37416102]
[1646407444544,0.02448,40796.0,40785.0,0.05]
[1646407444746,0.02448,40794.0,40781.0,0.003]
[1646407445142,0.2586094,40786.0,40781.0,0.003]
[1646407445344,0.3,40785.0,40775.0,0.004]
[1646407445542,0.3,40785.0,40778.0,0.24726939]
[1646407445543,0.17298945,40783.0,40778.0,0.24726939]
[1646407445746,0.22298945,40783.0,40778.0,0.24726939]
[1646407445945,0.05,40783.0,40778.0,0.24726939]
[1646407446201,0.3086094,40786.0,40778.0,0.24726939]
[1646407446600,0.06134354,40783.0,40775.0,0.004]
[1646407446806,0.3,40782.0,40775.0,0.004]
[1646407447002,0.05,40781.0,40775.0,0.004]
[1646407447406,0.07448,40781.0,40775.0,0.004]
[1646407447603,0.2701491,40779.0,40775.0,0.004]
[1646407447805,0.692634,40778.0,40775.0,0.0001]
[1646407448402,0.02448,40775.0,40769.0,0.002]
[1646407448603,0.02448,40769.0,40764.0,0.002]
[1646407448802,0.42448,40769.0,40764.0,0.002]
[1646407449001,0.24421593,40768.0,40764.0,0.002]
[1646407449848,0.3,40775.0,40764.0,0.002]
[1646407449849,0.061358,40770.0,40764.0,0.002]
[1646407450047,0.061358,40770.0,40767.0,0.25702759]
[1646407450247,0.061358,40770.0,40767.0,0.25202759]
[1646407450454,0.15,40774.0,40767.0,0.25202759]
[1646407450455,0.05,40774.0,40767.0,0.25202759]
[1646407450649,0.35,40778.0,40767.0,0.30202759]
[1646407450852,0.32448,40778.0,40767.0,0.30202759]
[1646407451050,0.061348,40776.0,40767.0,0.30202759]
[1646407451551,0.05,40779.0,40767.0,0.30202759]
[1646407451750,0.24596953,40778.0,40767.0,0.30202759]
[1646407452350,0.24596953,40778.0,40777.0,0.32275231]
[1646407452552,0.2443369,40778.0,40777.0,0.37275231]
[1646407452750,0.2443369,40778.0,40777.0,0.05]
[1646407452952,0.2443369,40778.0,40765.0,0.02448]
[1646407453151,0.3,40780.0,40765.0,0.02448]
[1646407453452,0.061342,40781.0,40765.0,0.02448]
[1646407453694,0.061342,40781.0,40773.0,0.28788269]
[1646407454293,0.35,40783.0,40780.0,0.31749109]
[1646407454495,0.05,40783.0,40780.0,0.31749109]
[1646407454697,0.15705188,40786.0,40780.0,0.36749109]
[1646407454894,0.25,40783.0,40780.0,0.36749109]
[1646407455093,0.22132692,40782.0,40780.0,0.36749109]
[1646407455299,0.3,40783.0,40780.0,0.05]